[Event "Early-Titled-Tuesday-Blitz-May-28-2024"]
[Site "Chess.com"]
[Date "2024.05.28"]
[Round "10"]
[White "Dolphin_2010"]
[Black "ahkashefi2800"]
[Result "1-0"]
[WhiteElo "2752"]
[BlackElo "2556"]
[TimeControl "180+1"]
[EndTime "9:58:48 PDT"]
[Termination "Dolphin_2010 won by checkmate"]

1. d4 {[%clk 0:03:00.9]} 1... Nf6 {[%clk 0:02:51.6]} 2. Bg5 {[%clk 0:03:00.4]}
2... e6 {[%clk 0:02:46]} 3. c4 {[%clk 0:02:59.9]} 3... d5 {[%clk 0:02:45.2]} 4.
Nc3 {[%clk 0:02:58.8]} 4... Be7 {[%clk 0:02:44.5]} 5. e3 {[%clk 0:02:55.1]} 5...
Nbd7 {[%clk 0:02:44.2]} 6. Nf3 {[%clk 0:02:54.5]} 6... O-O {[%clk 0:02:44]} 7.
c5 {[%clk 0:02:51.4]} 7... h6 {[%clk 0:02:28.3]} 8. Bh4 {[%clk 0:02:49.2]} 8...
Ne4 {[%clk 0:02:12.9]} 9. Bxe7 {[%clk 0:02:47.3]} 9... Qxe7 {[%clk 0:02:13.8]}
10. Nxe4 {[%clk 0:02:46.7]} 10... dxe4 {[%clk 0:02:14.7]} 11. Nd2 {[%clk
0:02:47.3]} 11... e5 {[%clk 0:02:11.4]} 12. Nxe4 {[%clk 0:02:44.6]} 12... exd4
{[%clk 0:02:11.7]} 13. Qxd4 {[%clk 0:02:45.5]} 13... Re8 {[%clk 0:02:10.3]} 14.
Bd3 {[%clk 0:02:26.1]} 14... Ne5 {[%clk 0:02:10.2]} 15. Bc2 {[%clk 0:02:18.3]}
15... Nc6 {[%clk 0:02:05.6]} 16. Qc3 {[%clk 0:02:10.2]} 16... Bf5 {[%clk
0:02:04.3]} 17. Ng3 {[%clk 0:02:06.7]} 17... Bxc2 {[%clk 0:02:02.1]} 18. Qxc2
{[%clk 0:02:07.6]} 18... Nb4 {[%clk 0:02:01.2]} 19. Qc4 {[%clk 0:01:49.8]} 19...
Qxc5 {[%clk 0:01:59.1]} 20. Qxc5 {[%clk 0:01:50.1]} 20... Nd3+ {[%clk
0:01:58.6]} 21. Ke2 {[%clk 0:01:51]} 21... Nxc5 {[%clk 0:01:58.9]} 22. Rac1
{[%clk 0:01:51.2]} 22... Ne6 {[%clk 0:01:59.2]} 23. Rc4 {[%clk 0:01:49.3]} 23...
c6 {[%clk 0:01:59]} 24. Rhc1 {[%clk 0:01:47]} 24... Rad8 {[%clk 0:01:59.2]} 25.
a4 {[%clk 0:01:42.2]} 25... Rd5 {[%clk 0:01:45]} 26. b4 {[%clk 0:01:32]} 26...
a5 {[%clk 0:01:41.2]} 27. Kf1 {[%clk 0:01:11.1]} 27... axb4 {[%clk 0:01:35.7]}
28. Rxb4 {[%clk 0:01:12]} 28... Rd7 {[%clk 0:01:07.4]} 29. Ne4 {[%clk
0:01:03.1]} 29... Ra8 {[%clk 0:01:00.5]} 30. Rcb1 {[%clk 0:00:56.5]} 30... Ra7
{[%clk 0:00:59.7]} 31. Ke2 {[%clk 0:00:54.3]} 31... Kf8 {[%clk 0:00:58.5]} 32.
g4 {[%clk 0:00:40.4]} 32... Ke7 {[%clk 0:00:57.5]} 33. Nc3 {[%clk 0:00:18.6]}
33... Kd8 {[%clk 0:00:55.3]} 34. h4 {[%clk 0:00:17.1]} 34... Kc8 {[%clk
0:00:49.8]} 35. Rc4 {[%clk 0:00:16.9]} 35... Nc7 {[%clk 0:00:45.3]} 36. h5
{[%clk 0:00:10.1]} 36... f6 {[%clk 0:00:36.4]} 37. Ne4 {[%clk 0:00:09.1]} 37...
Nd5 {[%clk 0:00:35.1]} 38. Nc5 {[%clk 0:00:08.7]} 38... Re7 {[%clk 0:00:35]} 39.
Kf3 {[%clk 0:00:07.6]} 39... Nc7 {[%clk 0:00:30.4]} 40. Ne4 {[%clk 0:00:07.1]}
40... Rd7 {[%clk 0:00:28.5]} 41. Rbc1 {[%clk 0:00:06.8]} 41... Nd5 {[%clk
0:00:26.5]} 42. Nc5 {[%clk 0:00:07.3]} 42... Re7 {[%clk 0:00:26.7]} 43. Nd3
{[%clk 0:00:06.9]} 43... Nb6 {[%clk 0:00:24.8]} 44. Rb4 {[%clk 0:00:04.7]} 44...
Nxa4 {[%clk 0:00:22]} 45. Ra1 {[%clk 0:00:05.4]} 45... b5 {[%clk 0:00:21.3]} 46.
Rc1 {[%clk 0:00:02.9]} 46... Rec7 {[%clk 0:00:20.6]} 47. Nf4 {[%clk 0:00:01.8]}
47... Nb6 {[%clk 0:00:16]} 48. Ne6 {[%clk 0:00:02.2]} 48... Nd5 {[%clk
0:00:11.9]} 49. Rd4 {[%clk 0:00:02.6]} 49... Rab7 {[%clk 0:00:02.8]} 50. e4
{[%clk 0:00:02.8]} 50... Nb6 {[%clk 0:00:02.6]} 51. Rd8# {[%clk 0:00:02.8]} 1-0

[Event "Early-Titled-Tuesday-Blitz-May-28-2024"]
[Site "Chess.com"]
[Date "2024.05.28"]
[Round "10"]
[White "Shushik"]
[Black "MatthewG-p4p"]
[Result "0-1"]
[WhiteElo "2556"]
[BlackElo "2851"]
[TimeControl "180+1"]
[EndTime "9:58:49 PDT"]
[Termination "MatthewG-p4p won on time"]

1. e4 {[%clk 0:03:00.9]} 1... e6 {[%clk 0:02:44]} 2. d4 {[%clk 0:03:00.3]} 2...
d5 {[%clk 0:02:44.9]} 3. Nd2 {[%clk 0:03:00.5]} 3... a6 {[%clk 0:02:43.9]} 4.
Ngf3 {[%clk 0:02:58.4]} 4... Nf6 {[%clk 0:02:42.7]} 5. e5 {[%clk 0:02:58.4]}
5... Nfd7 {[%clk 0:02:42.2]} 6. Bd3 {[%clk 0:02:58.5]} 6... c5 {[%clk 0:02:43]}
7. c3 {[%clk 0:02:58.4]} 7... Nc6 {[%clk 0:02:43.9]} 8. O-O {[%clk 0:02:58.3]}
8... g5 {[%clk 0:02:43.6]} 9. dxc5 {[%clk 0:02:54.8]} 9... g4 {[%clk 0:02:43.7]}
10. Nd4 {[%clk 0:02:54.3]} 10... Ndxe5 {[%clk 0:02:44.6]} 11. N2b3 {[%clk
0:02:46.4]} 11... Nxd3 {[%clk 0:02:44]} 12. Qxd3 {[%clk 0:02:46.4]} 12... e5
{[%clk 0:02:44.7]} 13. Nxc6 {[%clk 0:02:35]} 13... bxc6 {[%clk 0:02:45.6]} 14.
f3 {[%clk 0:02:35.6]} 14... gxf3 {[%clk 0:02:19]} 15. Qxf3 {[%clk 0:02:35]}
15... Be6 {[%clk 0:02:19.6]} 16. Qg3 {[%clk 0:02:20.9]} 16... Qb8 {[%clk
0:01:57.5]} 17. Bg5 {[%clk 0:02:17.1]} 17... Rg8 {[%clk 0:01:55.3]} 18. Qe3
{[%clk 0:01:45.1]} 18... a5 {[%clk 0:01:49.4]} 19. Bf6 {[%clk 0:01:41.9]} 19...
e4 {[%clk 0:01:38.2]} 20. c4 {[%clk 0:01:27.9]} 20... a4 {[%clk 0:01:28.7]} 21.
cxd5 {[%clk 0:01:27.5]} 21... cxd5 {[%clk 0:01:24.6]} 22. Nd2 {[%clk 0:01:25.6]}
22... Qb5 {[%clk 0:01:19.3]} 23. Rac1 {[%clk 0:01:20.7]} 23... Rc8 {[%clk
0:01:16.6]} 24. Bd4 {[%clk 0:01:17.7]} 24... Rg6 {[%clk 0:01:16.3]} 25. Nb1
{[%clk 0:01:00]} 25... Bh6 {[%clk 0:01:13.3]} 26. Qf2 {[%clk 0:00:51.2]} 26...
Bxc1 {[%clk 0:01:11.2]} 27. Rxc1 {[%clk 0:00:52.1]} 27... Qd3 {[%clk 0:00:44.5]}
28. Nc3 {[%clk 0:00:41.5]} 28... h5 {[%clk 0:00:27.6]} 29. Rd1 {[%clk
0:00:40.1]} 29... Qc4 {[%clk 0:00:27.6]} 30. Ne2 {[%clk 0:00:30.3]} 30... Bg4
{[%clk 0:00:24.2]} 31. Rf1 {[%clk 0:00:27.1]} 31... Rc7 {[%clk 0:00:21]} 32. Nf4
{[%clk 0:00:25.3]} 32... Rg8 {[%clk 0:00:21]} 33. Kh1 {[%clk 0:00:21.9]} 33...
h4 {[%clk 0:00:19.4]} 34. Re1 {[%clk 0:00:18.9]} 34... h3 {[%clk 0:00:19.4]} 35.
Nxh3 {[%clk 0:00:13]} 35... Bxh3 {[%clk 0:00:18.6]} 36. gxh3 {[%clk 0:00:13.9]}
36... Qd3 {[%clk 0:00:16.5]} 37. h4 {[%clk 0:00:10]} 37... Kd8 {[%clk
0:00:13.7]} 38. Bf6+ {[%clk 0:00:06.7]} 38... Kc8 {[%clk 0:00:13.2]} 39. Be5
{[%clk 0:00:06.7]} 39... Re7 {[%clk 0:00:06.3]} 40. Bd6 {[%clk 0:00:06.4]} 40...
Re6 {[%clk 0:00:04.6]} 41. Qxf7 {[%clk 0:00:06.5]} 41... Qf3+ {[%clk 0:00:02.5]}
42. Qxf3 {[%clk 0:00:06.5]} 42... exf3 {[%clk 0:00:03.4]} 43. Rf1 {[%clk
0:00:01.8]} 43... Re3 {[%clk 0:00:02.2]} 44. Bg3 {[%clk 0:00:01.9]} 44... d4
{[%clk 0:00:02.5]} 45. h5 {[%clk 0:00:01.7]} 45... d3 {[%clk 0:00:02.8]} 46. h6
{[%clk 0:00:02.3]} 46... Rh8 {[%clk 0:00:02.9]} 47. Bf4 {[%clk 0:00:01.8]} 47...
Re4 {[%clk 0:00:03.3]} 48. Rxf3 {[%clk 0:00:01.1]} 48... Rd4 {[%clk 0:00:02.7]}
49. Kg2 {[%clk 0:00:01.1]} 49... d2 {[%clk 0:00:03.1]} 50. Bxd2 {[%clk
0:00:01.4]} 50... Rxd2+ {[%clk 0:00:04]} 51. Kg1 {[%clk 0:00:00.9]} 51... Rxh6
{[%clk 0:00:04.6]} 52. Kf1 {[%clk 0:00:01.3]} 52... Rhxh2 {[%clk 0:00:04.7]} 53.
Ke1 {[%clk 0:00:01.5]} 53... Rxb2 {[%clk 0:00:05.6]} 0-1

[Event "Early-Titled-Tuesday-Blitz-May-28-2024"]
[Site "Chess.com"]
[Date "2024.05.28"]
[Round "10"]
[White "edgarhay012"]
[Black "Narek_Ghimoyan"]
[Result "0-1"]
[WhiteElo "2622"]
[BlackElo "2475"]
[TimeControl "180+1"]
[EndTime "9:58:51 PDT"]
[Termination "Narek_Ghimoyan won by resignation"]

1. e4 {[%clk 0:03:00.1]} 1... c6 {[%clk 0:02:59.2]} 2. d4 {[%clk 0:02:59.6]}
2... d5 {[%clk 0:03:00.1]} 3. Nc3 {[%clk 0:03:00.5]} 3... dxe4 {[%clk
0:03:00.4]} 4. Nxe4 {[%clk 0:03:01.4]} 4... Nf6 {[%clk 0:03:00.7]} 5. Nxf6+
{[%clk 0:02:35.5]} 5... exf6 {[%clk 0:03:01.6]} 6. c3 {[%clk 0:02:35.1]} 6...
Bd6 {[%clk 0:02:59.4]} 7. Bd3 {[%clk 0:02:35.3]} 7... Na6 {[%clk 0:02:59.7]} 8.
Qc2 {[%clk 0:02:33.5]} 8... Nc7 {[%clk 0:02:56.8]} 9. Ne2 {[%clk 0:02:31.9]}
9... h5 {[%clk 0:02:54.8]} 10. O-O {[%clk 0:02:30.4]} 10... Nd5 {[%clk
0:02:49.2]} 11. a3 {[%clk 0:02:30]} 11... Kf8 {[%clk 0:02:46.6]} 12. f4 {[%clk
0:02:27]} 12... g6 {[%clk 0:02:36.3]} 13. c4 {[%clk 0:02:26.7]} 13... Ne7 {[%clk
0:02:36.4]} 14. Bd2 {[%clk 0:02:24.7]} 14... Kg7 {[%clk 0:02:33.6]} 15. Bc3
{[%clk 0:02:21.4]} 15... Bf5 {[%clk 0:02:26.7]} 16. Ng3 {[%clk 0:02:17.3]} 16...
Qd7 {[%clk 0:01:33.9]} 17. Rae1 {[%clk 0:01:55.1]} 17... h4 {[%clk 0:01:18.8]}
18. Nxf5+ {[%clk 0:00:58.3]} 18... Nxf5 {[%clk 0:01:19.1]} 19. Bxf5 {[%clk
0:00:47.8]} 19... Qxf5 {[%clk 0:01:20]} 20. Qxf5 {[%clk 0:00:38.1]} 20... gxf5
{[%clk 0:01:20.9]} 21. c5 {[%clk 0:00:33]} 21... Bc7 {[%clk 0:00:52.2]} 22. Rf3
{[%clk 0:00:32.6]} 22... Rhe8 {[%clk 0:00:48.2]} 23. Kf1 {[%clk 0:00:22]} 23...
Rxe1+ {[%clk 0:00:46.3]} 24. Bxe1 {[%clk 0:00:22.9]} 24... Re8 {[%clk
0:00:45.3]} 25. Bxh4 {[%clk 0:00:19.8]} 25... Re4 {[%clk 0:00:44.4]} 26. Bf2
{[%clk 0:00:19.1]} 26... Bxf4 {[%clk 0:00:38.2]} 27. g3 {[%clk 0:00:17.7]} 27...
Bc1 {[%clk 0:00:36.5]} 28. b4 {[%clk 0:00:17.5]} 28... Kg6 {[%clk 0:00:34.5]}
29. a4 {[%clk 0:00:16.4]} 29... f4 {[%clk 0:00:30.6]} 30. b5 {[%clk 0:00:16.4]}
30... fxg3 {[%clk 0:00:28.3]} 31. hxg3 {[%clk 0:00:13.7]} 31... f5 {[%clk
0:00:28.7]} 32. a5 {[%clk 0:00:09.1]} 32... a6 {[%clk 0:00:17.7]} 33. bxa6
{[%clk 0:00:07.8]} 33... bxa6 {[%clk 0:00:17.6]} 34. Rb3 {[%clk 0:00:08.4]}
34... Bd2 {[%clk 0:00:15.7]} 35. Rb6 {[%clk 0:00:07.2]} 35... Bxa5 {[%clk
0:00:15.5]} 36. Rxa6 {[%clk 0:00:05.4]} 36... Bc3 {[%clk 0:00:13.6]} 37. Rxc6+
{[%clk 0:00:05.3]} 37... Kg5 {[%clk 0:00:14.1]} 38. d5 {[%clk 0:00:03.1]} 38...
Kg4 {[%clk 0:00:14.6]} 39. Kg2 {[%clk 0:00:02.8]} 39... Re2 {[%clk 0:00:14]} 40.
Rc8 {[%clk 0:00:03]} 40... Bd4 {[%clk 0:00:13.7]} 41. Rg8+ {[%clk 0:00:02.3]}
41... Kh5 {[%clk 0:00:14.3]} 42. g4+ {[%clk 0:00:02.7]} 42... fxg4 {[%clk
0:00:12.7]} 43. Kg3 {[%clk 0:00:02.5]} 43... Bxf2+ {[%clk 0:00:11.8]} 44. Kf4
{[%clk 0:00:02.6]} 44... g3 {[%clk 0:00:12]} 45. Kf5 {[%clk 0:00:02.4]} 45...
Kh6 {[%clk 0:00:11.7]} 46. c6 {[%clk 0:00:02.1]} 46... Rc2 {[%clk 0:00:10.2]}
47. Kf6 {[%clk 0:00:02.5]} 47... Bd4+ {[%clk 0:00:09.4]} 48. Kxf7 {[%clk
0:00:03]} 48... g2 {[%clk 0:00:09.8]} 49. Ke6 {[%clk 0:00:03.2]} 49... g1=Q
{[%clk 0:00:09.6]} 50. Rxg1 {[%clk 0:00:02.9]} 50... Bxg1 {[%clk 0:00:10.5]} 51.
Kd7 {[%clk 0:00:03.6]} 51... Bh2 {[%clk 0:00:10]} 52. d6 {[%clk 0:00:04.2]}
52... Rd2 {[%clk 0:00:09.6]} 53. c7 {[%clk 0:00:04.7]} 53... Rxd6+ {[%clk
0:00:10.1]} 54. Kc8 {[%clk 0:00:02.2]} 54... Rc6 {[%clk 0:00:11]} 55. Kb8 {[%clk
0:00:02.3]} 55... Rxc7 {[%clk 0:00:10.9]} 56. Ka8 {[%clk 0:00:02.4]} 56... Kg6
{[%clk 0:00:11.8]} 0-1

[Event "Early-Titled-Tuesday-Blitz-May-28-2024"]
[Site "Chess.com"]
[Date "2024.05.28"]
[Round "10"]
[White "dropstoneDP"]
[Black "eagleclaw07"]
[Result "1-0"]
[WhiteElo "2978"]
[BlackElo "2853"]
[TimeControl "180+1"]
[EndTime "9:58:53 PDT"]
[Termination "dropstoneDP won by resignation"]

1. e4 {[%clk 0:03:00.9]} 1... c5 {[%clk 0:02:59.5]} 2. Nf3 {[%clk 0:03:00.1]}
2... d6 {[%clk 0:03:00.1]} 3. d4 {[%clk 0:02:59]} 3... cxd4 {[%clk 0:03:01]} 4.
Nxd4 {[%clk 0:02:59.4]} 4... Nf6 {[%clk 0:03:01.9]} 5. Nc3 {[%clk 0:02:59.3]}
5... Nc6 {[%clk 0:03:02.5]} 6. Bg5 {[%clk 0:02:54.6]} 6... e6 {[%clk 0:03:03.1]}
7. Qd2 {[%clk 0:02:53.7]} 7... a6 {[%clk 0:03:02.9]} 8. Nxc6 {[%clk 0:02:53.9]}
8... bxc6 {[%clk 0:03:03.1]} 9. O-O-O {[%clk 0:02:54.8]} 9... Be7 {[%clk
0:03:02.8]} 10. Bxf6 {[%clk 0:02:53.3]} 10... gxf6 {[%clk 0:03:02.8]} 11. Bc4
{[%clk 0:02:53.9]} 11... a5 {[%clk 0:02:59]} 12. Bb3 {[%clk 0:02:50.6]} 12...
Bd7 {[%clk 0:02:56.3]} 13. Kb1 {[%clk 0:02:49.2]} 13... Rb8 {[%clk 0:02:46]} 14.
Rhe1 {[%clk 0:02:43.9]} 14... c5 {[%clk 0:02:34.3]} 15. f4 {[%clk 0:02:28.9]}
15... Rb4 {[%clk 0:02:31.1]} 16. Qe2 {[%clk 0:02:13]} 16... a4 {[%clk
0:02:28.7]} 17. a3 {[%clk 0:02:13.5]} 17... axb3 {[%clk 0:02:17.8]} 18. axb4
{[%clk 0:02:13.2]} 18... cxb4 {[%clk 0:02:18.7]} 19. Nb5 {[%clk 0:02:12.2]}
19... Qa5 {[%clk 0:02:18.1]} 20. Nxd6+ {[%clk 0:02:08.2]} 20... Bxd6 {[%clk
0:02:18]} 21. Rxd6 {[%clk 0:01:58.4]} 21... Qa2+ {[%clk 0:02:18.7]} 22. Kc1
{[%clk 0:01:57.7]} 22... Qa1+ {[%clk 0:02:19.6]} 23. Kd2 {[%clk 0:01:57.2]}
23... Qxb2 {[%clk 0:02:20.5]} 24. Qd3 {[%clk 0:01:52.6]} 24... bxc2 {[%clk
0:01:55.3]} 25. Rc1 {[%clk 0:01:35.6]} 25... Qc3+ {[%clk 0:01:04.8]} 26. Qxc3
{[%clk 0:01:34.9]} 26... bxc3+ {[%clk 0:01:05.7]} 27. Kxc2 {[%clk 0:01:27.1]}
27... Ke7 {[%clk 0:01:06.6]} 28. Rd3 {[%clk 0:01:24.3]} 28... Bc6 {[%clk
0:00:50.5]} 29. Re1 {[%clk 0:01:20.7]} 29... Ra8 {[%clk 0:00:46.4]} 30. Rxc3
{[%clk 0:01:18.8]} 30... Ra6 {[%clk 0:00:39.5]} 31. Kd2 {[%clk 0:01:16.3]} 31...
Kd6 {[%clk 0:00:37.7]} 32. Ke3 {[%clk 0:01:11.3]} 32... e5 {[%clk 0:00:32.3]}
33. fxe5+ {[%clk 0:01:10.8]} 33... fxe5 {[%clk 0:00:32.8]} 34. Kf2 {[%clk
0:00:59.7]} 34... Ra2+ {[%clk 0:00:30]} 35. Kg1 {[%clk 0:00:59.8]} 35... Ba8
{[%clk 0:00:28.2]} 36. Rf3 {[%clk 0:00:42.2]} 36... Ra7 {[%clk 0:00:20.2]} 37.
Rh3 {[%clk 0:00:37.5]} 37... f6 {[%clk 0:00:14.3]} 38. Rh6 {[%clk 0:00:37.6]}
38... Ke6 {[%clk 0:00:14.1]} 39. g4 {[%clk 0:00:38.2]} 39... Ra4 {[%clk
0:00:07.2]} 40. g5 {[%clk 0:00:35.6]} 40... Bxe4 {[%clk 0:00:04.8]} 41. Rxf6+
{[%clk 0:00:36.1]} 41... Ke7 {[%clk 0:00:04.7]} 42. h4 {[%clk 0:00:35]} 42...
Bg6 {[%clk 0:00:02.6]} 43. Rxe5+ {[%clk 0:00:34.5]} 43... Kd7 {[%clk 0:00:03.1]}
44. Rb5 {[%clk 0:00:29.1]} 44... Rxh4 {[%clk 0:00:02.7]} 45. Rb7+ {[%clk
0:00:29.6]} 45... Kc8 {[%clk 0:00:03.2]} 46. Rg7 {[%clk 0:00:28.7]} 46... Rg4+
{[%clk 0:00:02.3]} 47. Kf2 {[%clk 0:00:27.4]} 47... Rd4 {[%clk 0:00:03]} 48.
Rf8+ {[%clk 0:00:23.2]} 48... Rd8 {[%clk 0:00:03.5]} 49. Rxd8+ {[%clk
0:00:22.7]} 49... Kxd8 {[%clk 0:00:04.4]} 50. Ke3 {[%clk 0:00:23.1]} 50... Ke8
{[%clk 0:00:05]} 51. Kf4 {[%clk 0:00:23.5]} 51... Kf8 {[%clk 0:00:05.4]} 52. Rc7
{[%clk 0:00:24]} 52... Bf7 {[%clk 0:00:05.8]} 53. Ke5 {[%clk 0:00:23.4]} 53...
Kg7 {[%clk 0:00:01.8]} 54. Kf5 {[%clk 0:00:23.2]} 54... Kf8 {[%clk 0:00:02]} 55.
Kf6 {[%clk 0:00:23.5]} 55... Bg6 {[%clk 0:00:02.2]} 56. Rc8+ {[%clk 0:00:23.8]}
56... Be8 {[%clk 0:00:02.7]} 57. Rb8 {[%clk 0:00:24.5]} 57... h6 {[%clk
0:00:02.6]} 58. g6 {[%clk 0:00:24.5]} 58... h5 {[%clk 0:00:02.2]} 59. g7+ {[%clk
0:00:25]} 59... Kg8 {[%clk 0:00:02.7]} 60. Rxe8+ {[%clk 0:00:25.9]} 1-0

[Event "Early-Titled-Tuesday-Blitz-May-28-2024"]
[Site "Chess.com"]
[Date "2024.05.28"]
[Round "10"]
[White "rhungaski"]
[Black "Losingexperience"]
[Result "1/2-1/2"]
[WhiteElo "2602"]
[BlackElo "2759"]
[TimeControl "180+1"]
[EndTime "9:58:53 PDT"]
[Termination "Game drawn by repetition"]

1. d4 {[%clk 0:02:59.9]} 1... Nf6 {[%clk 0:02:59.8]} 2. c4 {[%clk 0:02:58.4]}
2... g6 {[%clk 0:03:00.1]} 3. Nc3 {[%clk 0:02:56.5]} 3... Bg7 {[%clk 0:03:00.4]}
4. Nf3 {[%clk 0:02:54]} 4... O-O {[%clk 0:03:00.3]} 5. Bg5 {[%clk 0:02:54.4]}
5... d6 {[%clk 0:03:01.2]} 6. e3 {[%clk 0:02:54.1]} 6... Nbd7 {[%clk 0:03:00.3]}
7. Be2 {[%clk 0:02:51.2]} 7... b6 {[%clk 0:03:00]} 8. O-O {[%clk 0:02:50.4]}
8... Bb7 {[%clk 0:03:00.2]} 9. Qc2 {[%clk 0:02:51.1]} 9... a6 {[%clk 0:02:55.3]}
10. Rfd1 {[%clk 0:02:49.2]} 10... h6 {[%clk 0:02:51.8]} 11. Bh4 {[%clk
0:02:48.7]} 11... Qe8 {[%clk 0:02:38.1]} 12. a3 {[%clk 0:02:41.7]} 12... e5
{[%clk 0:02:37.5]} 13. dxe5 {[%clk 0:02:42]} 13... Nxe5 {[%clk 0:02:35.1]} 14.
Nd5 {[%clk 0:01:54.2]} 14... Nxd5 {[%clk 0:02:00]} 15. cxd5 {[%clk 0:01:55.1]}
15... Qd7 {[%clk 0:02:00.4]} 16. Rac1 {[%clk 0:01:51.9]} 16... Rac8 {[%clk
0:01:59.2]} 17. Nd4 {[%clk 0:01:47.8]} 17... c5 {[%clk 0:01:51.7]} 18. dxc6
{[%clk 0:01:46.8]} 18... Nxc6 {[%clk 0:01:52]} 19. Nxc6 {[%clk 0:01:39.6]} 19...
Rxc6 {[%clk 0:01:52.9]} 20. Qd2 {[%clk 0:01:40]} 20... Rxc1 {[%clk 0:01:44.1]}
21. Rxc1 {[%clk 0:01:40.9]} 21... Rc8 {[%clk 0:01:42.6]} 22. Rxc8+ {[%clk
0:01:32.9]} 22... Qxc8 {[%clk 0:01:20.3]} 23. Bg3 {[%clk 0:01:32.9]} 23... Be5
{[%clk 0:01:06.7]} 24. b4 {[%clk 0:01:32.7]} 24... Qe6 {[%clk 0:00:54.4]} 25.
Qc2 {[%clk 0:01:22]} 25... a5 {[%clk 0:00:36.1]} 26. b5 {[%clk 0:01:17.1]} 26...
Kg7 {[%clk 0:00:26.7]} 27. a4 {[%clk 0:01:16.7]} 27... Bd5 {[%clk 0:00:24.9]}
28. Bd1 {[%clk 0:00:55]} 28... Bxg3 {[%clk 0:00:19.2]} 29. hxg3 {[%clk
0:00:54.1]} 29... Qe4 {[%clk 0:00:19.5]} 30. Qc3+ {[%clk 0:00:45.2]} 30... Qe5
{[%clk 0:00:19.2]} 31. Qd2 {[%clk 0:00:43.9]} 31... Bc4 {[%clk 0:00:15.4]} 32.
g4 {[%clk 0:00:38.3]} 32... d5 {[%clk 0:00:15.4]} 33. f4 {[%clk 0:00:37.5]}
33... Qd6 {[%clk 0:00:14.1]} 34. Qd4+ {[%clk 0:00:33.1]} 34... Qf6 {[%clk
0:00:09.5]} 35. g5 {[%clk 0:00:32.1]} 35... Qxd4 {[%clk 0:00:09.2]} 36. exd4
{[%clk 0:00:31.9]} 36... hxg5 {[%clk 0:00:09.3]} 37. fxg5 {[%clk 0:00:32.8]}
37... f6 {[%clk 0:00:10.2]} 38. gxf6+ {[%clk 0:00:32.5]} 38... Kxf6 {[%clk
0:00:11.1]} 39. Kf2 {[%clk 0:00:29.9]} 39... Bd3 {[%clk 0:00:10.9]} 40. Ke3
{[%clk 0:00:26.5]} 40... Be4 {[%clk 0:00:11.1]} 41. g3 {[%clk 0:00:27.1]} 41...
Kf5 {[%clk 0:00:09.4]} 42. Bb3 {[%clk 0:00:19]} 42... g5 {[%clk 0:00:09.3]} 43.
Kf2 {[%clk 0:00:19.6]} 43... Bb1 {[%clk 0:00:06.9]} 44. Ke3 {[%clk 0:00:17.7]}
44... Kg4 {[%clk 0:00:04.2]} 45. Kf2 {[%clk 0:00:17.3]} 45... Be4 {[%clk
0:00:04.2]} 46. Bd1+ {[%clk 0:00:16.9]} 46... Kf5 {[%clk 0:00:04.4]} 47. Bb3
{[%clk 0:00:17.3]} 47... Ke6 {[%clk 0:00:04.7]} 48. Ke3 {[%clk 0:00:17.1]} 48...
Bf5 {[%clk 0:00:05.1]} 49. Bd1 {[%clk 0:00:16.9]} 49... Be4 {[%clk 0:00:04.1]}
50. Bb3 {[%clk 0:00:17.1]} 50... Bh1 {[%clk 0:00:04.2]} 51. Bc2 {[%clk
0:00:16.9]} 51... Kf6 {[%clk 0:00:04.2]} 52. Bb3 {[%clk 0:00:16.9]} 52... Kf5
{[%clk 0:00:04.8]} 53. Bc2+ {[%clk 0:00:17]} 53... Kg4 {[%clk 0:00:05.3]} 54.
Kf2 {[%clk 0:00:17.3]} 54... Bf3 {[%clk 0:00:02.9]} 55. Bb3 {[%clk 0:00:15.9]}
55... Be4 {[%clk 0:00:03.2]} 56. Bd1+ {[%clk 0:00:15.8]} 56... Kf5 {[%clk
0:00:03.8]} 57. Bb3 {[%clk 0:00:15.9]} 1/2-1/2